fUST/lending_fUST_20250704
["ID","MTS","AMOUNT","RATE_DAILY","PERIOD"]
[369505600,1751602250513,-663.84,0.00018356,2]
[369505601,1751602250523,-522.78,0.00018356,2]
[369505602,1751602250533,-405.527713,0.00018356,2]
[369505603,1751602250542,-405.527713,0.00018356,2]
[369505604,1751602250551,-151.0,0.00018356,2]
[369505605,1751602250561,-151.0,0.00018356,2]
[369505606,1751602250570,-802.17830591,0.00018356,2]
[369505607,1751602250582,-274.20745242,0.00018356,2]
[369505608,1751602250765,-2554.39254219,0.00016498,2]
[369505609,1751602250776,-498.33424167,0.00018356,2]
[369505610,1751602250896,-151.0,0.00018356,2]
[369505611,1751602250909,-518.53596,0.00018356,2]
[369505612,1751602250918,-518.53596,0.00018356,2]
[369505613,1751602250928,-460.0,0.00018356,2]
[369505614,1751602250937,-1300.78,0.00018356,2]
[369505615,1751602250947,-460.0,0.00018356,2]
[369505616,1751602250956,-701.228827,0.00018356,2]
[369505617,1751602250966,-250.462863,0.00018356,2]
[369505618,1751602250975,-701.228827,0.00018356,2]
[369505619,1751602250984,-3303.43,0.00018356,2]
[369505620,1751602250993,-250.462863,0.00018356,2]
[369505621,1751602251003,-611.4,0.00018356,2]
[369505622,1751602251013,-758.5,0.00018356,2]
[369505623,1751602251022,-1025.93,0.00018356,2]
[369505624,1751602251032,-475.19,0.00018356,2]
[369505625,1751602251041,-151.0,0.00018356,2]
[369505626,1751602251050,-460.0,0.00018356,2]
[369505627,1751602251060,-151.0,0.00018356,2]
[369505628,1751602251069,-714.38,0.00018356,2]
[369505629,1751602251079,-460.0,0.00018356,2]
[369505630,1751602251088,-2892.38,0.00018356,2]
[369505631,1751602251098,-451.77492942,0.00018356,2]
[369505632,1751602251107,-2650.48,0.00018356,2]
[369505633,1751602251117,-612.61,0.00018356,2]
[369505634,1751602251127,-580.98,0.00018356,2]
[369505635,1751602251137,-1090.47,0.00018356,2]
[369505636,1751602251146,-3588.53,0.00018356,2]
[369505637,1751602251155,-589.73,0.00018356,2]
[369505638,1751602251164,-531.15,0.00018356,2]
[369505639,1751602251174,-545.72,0.00018356,2]
[369505640,1751602251184,-2245.79,0.00018356,2]
[369505641,1751602251193,-460.0,0.00018356,2]
[369505642,1751602251203,-676.74,0.00018356,2]
[369505643,1751602251213,-1815.39,0.00018356,2]
[369505644,1751602251223,-460.0,0.00018356,2]
[369505645,1751602251232,-470.65,0.00018356,2]
[369505646,1751602251241,-968.15,0.00018356,2]
[369505647,1751602251251,-553.14,0.00018356,2]
[369505648,1751602251260,-460.0,0.00018356,2]
[369505649,1751602251269,-673.84,0.00018356,2]
[369505650,1751602251279,-2081.67,0.00018356,2]
[369505651,1751602251289,-696.75,0.00018356,2]
[369505652,1751602251298,-2216.37,0.00018356,2]
[369505653,1751602251307,-4751.9,0.00018356,2]
[369505654,1751602251317,-770.36,0.00018356,2]
[369505655,1751602251326,-1085.1,0.00018356,2]
[369505656,1751602251335,-205.650061,0.00018356,2]
[369505657,1751602251344,-493.46,0.00018356,2]
[369505658,1751602251354,-205.650065,0.00018356,2]
[369505659,1751602251363,-1343.92,0.00018356,2]
[369505660,1751602251372,-688.17,0.00018356,2]
[369505661,1751602251381,-460.0,0.00018356,2]
[369505662,1751602251390,-1238.86,0.00018356,2]
[369505663,1751602251400,-632.24,0.00018356,2]
[369505664,1751602251409,-570.34,0.00018356,2]
[369505665,1751602251418,-4192.40432889,0.00018383,2]
[369505666,1751602251427,-151.0,0.00018383,2]
[369505667,1751602251436,-1855.64658635,0.00018396,2]
[369505668,1751602251449,-2144.35341365,0.00018396,2]
[369505669,1751602251459,-151.0,0.00018396,2]
[369505670,1751602251468,-3604.53975677,0.00018421,2]
[369505671,1751602251479,-1363.4458608,0.00018421,2]
[369505672,1751602251490,-57.27438243,0.00018421,2]
[369505673,1751602251499,-1082.41602893,0.00018447,2]
[369505674,1751602251510,-660.58549283,0.00018447,2]
[369505675,1751602568010,500.0,0.00027397,120]
[369505676,1751602576626,500.0,0.00027397,120]
[369505677,1751602584770,500.0,0.00027397,120]
[369505678,1751602732403,176.069709,0.00013699,2]
[369505680,1751602774459,-288.0,0.00016437,2]
[369505698,1751603209551,500.0,0.00015096,2]
[369505699,1751603214153,500.0,0.00015096,2]
[369505700,1751603218776,500.0,0.00015096,2]
[369505749,1751603432501,-500.0,0.00015307,2]
[369505751,1751603432512,-244.7070785,0.00015529,2]
[369505753,1751603432522,-300.0,0.00015615,2]
[369505755,1751603432532,-1396.53177373,0.00015616,2]
[369505768,1751603438453,-2328.55081501,0.00015616,2]
[369505776,1751603438562,-665.54,0.00015616,2]
[369505778,1751603438573,-2350.00000001,0.00015616,2]
[369506007,1751603440780,-1793.02354822,0.00015616,2]
[369506009,1751603440795,-7383.16043792,0.00015616,2]
[369506012,1751603440807,-6336.3046644,0.00015616,2]
[369506014,1751603440819,-2646.88876071,0.00015616,2]
[369506016,1751603440830,-500.0,0.00016113,2]
[369506018,1751603440840,-207.4,0.00016428,2]
[369506020,1751603440849,-460.0,0.00016438,2]
[369506022,1751603440859,-460.0,0.00016438,2]
[369506024,1751603440869,-150.88955663,0.00016438,2]
[369506026,1751603440878,-460.0,0.00016438,2]
[369506028,1751603440888,-460.0,0.00016438,2]
[369506030,1751603440897,-460.0,0.00016438,2]
[369506032,1751603440907,-513.57,0.00016438,2]
[369506034,1751603440917,-460.0,0.00016438,2]
[369506037,1751603440926,-460.0,0.00016438,2]
[369506039,1751603440936,-460.0,0.00016438,2]
[369506041,1751603440945,-460.0,0.00016438,2]
[369506043,1751603440955,-460.0,0.00016438,2]
[369506045,1751603440964,-460.0,0.00016438,2]
[369506047,1751603440974,-663.26,0.00016438,2]
[369506049,1751603440984,-1325.4,0.00016438,2]
[369506051,1751603440993,-113.12658034,0.00016438,2]
[369506594,1751603446699,-409.0006823,0.00016438,2]
[369509453,1751603852974,6025.2418938,0.0002739,120]
[369509454,1751604003327,164.615049,0.00013699,2]
[369509456,1751604044232,1799.88174146,0.00024,60]
[369509457,1751604189424,-300.0,0.00015415,2]
[369509458,1751604189445,-1802.0,0.00015416,2]
[369509459,1751604387855,-300.0,0.00015333,2]
[369509460,1751604387877,-17597.0,0.00015334,2]
[369509485,1751604633104,-313.73916419,0.00015334,2]
[369509486,1751604633120,-407.96641018,0.00015334,2]
[369509487,1751604633132,-631.98987529,0.00015334,2]
[369509513,1751604638630,-5949.30455034,0.00015334,2]
[369509515,1751604638640,-1200.0,0.00015413,2]
[369509518,1751604638650,-300.0,0.00015414,2]
[369509520,1751604638659,-300.0,0.00015415,2]
[369509522,1751604638669,-300.0,0.00015415,2]
[369509524,1751604638679,-300.0,0.00015415,2]
[369509526,1751604638688,-300.0,0.00015415,2]
[369509528,1751604638698,-10414.2339696,0.00015416,2]
[369509530,1751604638708,-242.424092,0.00015445,2]
[369509532,1751604638718,-170.97139574,0.00015945,2]
[369509534,1751604638728,-2590.80344594,0.00016349,2]
[369509536,1751604638738,-207.4,0.00016418,2]
[369509538,1751604638748,-411.31885303,0.00016426,2]
[369509540,1751604638757,-500.0,0.00016426,2]
[369509541,1751604638768,-500.0,0.00016426,2]
[369509543,1751604638778,-500.0,0.00016426,2]
[369509545,1751604638787,-500.0,0.00016426,2]
[369509547,1751604638796,-500.0,0.00016426,2]
[369509549,1751604638806,-316.23636937,0.00016426,2]
[369509551,1751604638816,-500.0,0.00016426,2]
[369509553,1751604638826,-500.0,0.00016426,2]
[369509555,1751604638835,-500.0,0.00016426,2]
[369509557,1751604638845,-500.0,0.00016426,2]
[369509559,1751604638854,-500.0,0.00016426,2]
[369509560,1751604638864,-500.0,0.00016426,2]
[369509562,1751604638874,-500.0,0.00016426,2]
[369509564,1751604638884,-218.23367028,0.00016426,2]
[369509566,1751604638894,-199.0,0.00016426,2]
[369509569,1751604638904,-500.0,0.00016426,2]
[369509571,1751604638914,-500.0,0.00016426,2]
[369509572,1751604638923,-500.0,0.00016426,2]
[369509573,1751604638934,-500.0,0.00016426,2]
[369509574,1751604638943,-500.0,0.00016426,2]
[369509575,1751604638953,-500.0,0.00016426,2]
[369509576,1751604638963,-500.0,0.00016426,2]
[369509577,1751604638972,-500.0,0.00016426,2]
[369509578,1751604638983,-500.0,0.00016426,2]
[369509579,1751604638993,-500.0,0.00016426,2]
[369509580,1751604639003,-500.0,0.00016426,2]
[369509581,1751604639012,-500.0,0.00016426,2]
[369509582,1751604639023,-500.0,0.00016426,2]
[369509583,1751604639033,-500.0,0.00016426,2]
[369509584,1751604639042,-500.0,0.00016426,2]
[369509585,1751604639052,-500.0,0.00016426,2]
[369509586,1751604639062,-500.0,0.00016426,2]
[369509587,1751604639072,-500.0,0.00016426,2]
[369509588,1751604639082,-500.0,0.00016426,2]
[369509589,1751604639091,-167.02828902,0.00016426,2]
[369509590,1751604639101,-500.0,0.00016426,2]
[369509591,1751604639111,-500.0,0.00016426,2]
[369509592,1751604639121,-500.0,0.00016426,2]
[369509593,1751604639131,-500.0,0.00016426,2]
[369509594,1751604639142,-500.0,0.00016426,2]
[369509595,1751604639151,-500.0,0.00016426,2]
[369509596,1751604639161,-500.0,0.00016426,2]
[369509597,1751604639171,-500.0,0.00016426,2]
[369509598,1751604639181,-500.0,0.00016426,2]
[369509599,1751604639191,-500.0,0.00016426,2]
[369509600,1751604639200,-500.0,0.00016426,2]
[369509601,1751604639210,-500.0,0.00016426,2]
[369509602,1751604639220,-355.12221227,0.00016426,2]
[369509603,1751604639229,-500.0,0.00016426,2]
[369509604,1751604639239,-500.0,0.00016426,2]
[369509605,1751604639250,-500.0,0.00016426,2]
[369509606,1751604639259,-500.0,0.00016426,2]
[369509607,1751604639269,-500.0,0.00016426,2]
[369509608,1751604639279,-500.0,0.00016426,2]
[369509609,1751604639289,-500.0,0.00016426,2]
[369509610,1751604639299,-500.0,0.00016426,2]
[369509611,1751604639308,-500.0,0.00016428,2]
[369509612,1751604639318,-5000.0,0.00016428,2]
[369509613,1751604639328,-500.0,0.00016428,2]
[369509614,1751604639337,-500.0,0.00016428,2]
[369509615,1751604639347,-500.0,0.00016428,2]
[369509616,1751604639357,-500.0,0.00016428,2]
[369509617,1751604639366,-500.0,0.00016428,2]
[369509618,1751604639376,-500.0,0.00016428,2]
[369509619,1751604639385,-500.0,0.00016428,2]
[369509620,1751604639395,-500.0,0.00016428,2]
[369509621,1751604639405,-500.0,0.00016428,2]
[369509622,1751604639415,-500.0,0.00016428,2]
[369509623,1751604639424,-407.8541526,0.00016428,2]
[369509624,1751604639434,-160.0,0.00016434,2]
[369509625,1751604639444,-506.47146761,0.00016437,2]
[369509626,1751604639453,-500.0,0.00016437,2]
[369509627,1751604639463,-500.0,0.00016437,2]
[369509628,1751604639472,-433.02954733,0.00016437,2]
[369509629,1751604639482,-460.0,0.00016438,2]
[369509630,1751604639492,-461.67174971,0.00016438,2]
[369509631,1751604639504,-462.16770111,0.00016438,2]
[369509632,1751604639513,-282.91830961,0.00016438,2]
[369509633,1751604639523,-462.9325896,0.00016438,2]
[369509634,1751604639533,-356.43495612,0.00016438,2]
[369509635,1751604639545,-460.0,0.00016438,2]
[369509636,1751604639556,-463.21268092,0.00016438,2]
[369509637,1751604639565,-460.0,0.00016438,2]
[369509638,1751604639575,-460.0,0.00016438,2]
[369509639,1751604639587,-465.16263591,0.00016438,2]
[369509640,1751604639596,-552.78020645,0.00016438,2]
[369509641,1751604639606,-460.0,0.00016438,2]
[369509642,1751604639616,-460.0,0.00016438,2]
[369509643,1751604639626,-466.06809695,0.00016438,2]
[369509644,1751604639635,-434.43435421,0.00016438,2]
[369509645,1751604639645,-460.0,0.00016438,2]
[369509646,1751604639655,-460.0,0.00016438,2]
[369509647,1751604639664,-460.0,0.00016438,2]
[369509648,1751604639674,-460.0,0.00016438,2]
[369509649,1751604639683,-460.0,0.00016438,2]
[369509650,1751604639693,-460.0,0.00016438,2]
[369509651,1751604639703,-460.0,0.00016438,2]
[369509652,1751604639713,-492.18,0.00016438,2]
[369509653,1751604639722,-464.83710252,0.00016438,2]
[369509654,1751604639732,-460.0,0.00016438,2]
[369509655,1751604639742,-460.0,0.00016438,2]
[369509656,1751604639752,-460.0,0.00016438,2]
[369509657,1751604639761,-460.44640654,0.00016438,2]
[369509658,1751604639771,-605.22875358,0.00016438,2]
[369509659,1751604639781,-460.0,0.00016438,2]
[369509660,1751604639790,-460.0,0.00016438,2]
[369509661,1751604639800,-380.12353036,0.00016438,2]
[369509662,1751604639809,-1277.65,0.00016438,2]
[369509663,1751604639818,-504.61505985,0.00016438,2]
[369509664,1751604639828,-460.0,0.00016438,2]
[369509665,1751604639838,-460.0,0.00016438,2]
[369509666,1751604639848,-460.0,0.00016438,2]
[369509667,1751604639857,-460.0,0.00016438,2]
[369509668,1751604639867,-867.18,0.00016438,2]
[369509669,1751604639877,-462.24296823,0.00016438,2]
[369509670,1751604639886,-460.0,0.00016438,2]
[369509671,1751604639896,-460.0,0.00016438,2]
[369509672,1751604639906,-460.0,0.00016438,2]
[369509673,1751604639915,-2202.29,0.00016438,2]
[369509674,1751604639925,-1293.38,0.00016438,2]
[369509675,1751604639934,-460.0,0.00016438,2]
[369509676,1751604639944,-3591.81,0.00016438,2]
[369509677,1751604639954,-462.39166831,0.00016438,2]
[369509678,1751604639963,-460.0,0.00016438,2]
[369509679,1751604639973,-505.67,0.00016438,2]
[369509680,1751604639983,-460.0,0.00016438,2]
[369509681,1751604639993,-1371.69,0.00016438,2]
[369509682,1751604640003,-1552.07,0.00016438,2]
[369509683,1751604640013,-460.0,0.00016438,2]
[369509684,1751604640023,-1149.92,0.00016438,2]
[369509685,1751604640032,-460.0,0.00016438,2]
[369509686,1751604640041,-596.44846967,0.00016438,2]
[369509687,1751604640051,-495.42,0.00016438,2]
[369509688,1751604640060,-1928.25,0.00016438,2]
[369509689,1751604640070,-460.0,0.00016438,2]
[369509690,1751604640079,-460.0,0.00016438,2]
[369509691,1751604640089,-580.29,0.00016438,2]
[369509692,1751604640098,-2392.35,0.00016438,2]
[369509693,1751604640108,-460.0,0.00016438,2]
[369509694,1751604640118,-491.58,0.00016438,2]
[369509695,1751604640127,-746.15,0.00016438,2]
[369509696,1751604640137,-584.34768245,0.00016438,2]
[369509697,1751604640147,-460.0,0.00016438,2]
[369509698,1751604640157,-460.0,0.00016438,2]
[369509699,1751604640167,-460.0,0.00016438,2]
[369509700,1751604640177,-460.0,0.00016438,2]
[369509701,1751604640186,-1000.0,0.00016438,2]
[369509702,1751604640196,-1000.0,0.00016438,2]
[369509703,1751604640207,-345.5423238,0.00016438,2]
[369509707,1751604640363,-122.73565243,0.00016438,2]
[369509708,1751604640374,-1000.0,0.00016438,2]
[369509709,1751604640385,-1000.0,0.00016438,2]
[369509710,1751604640396,-1000.0,0.00016438,2]
[369509711,1751604640407,-461.2103107,0.00016438,2]
[369509712,1751604640417,-460.0,0.00016438,2]
[369509714,1751604640427,-485.74,0.00016438,2]
[369509715,1751604640436,-462.97831528,0.00016438,2]
[369509718,1751604640446,-460.0,0.00016438,2]
[369509720,1751604640456,-664.6,0.00016438,2]
[369509724,1751604640467,-1521.05,0.00016438,2]
[369509728,1751604640477,-460.0,0.00016438,2]
[369509731,1751604640486,-1786.15,0.00016438,2]
[369509733,1751604640496,-460.0,0.00016438,2]
[369509735,1751604640506,-160.57848467,0.00016438,2]
[369509737,1751604640516,-1611.28,0.00016438,2]
[369509739,1751604640526,-463.82962481,0.00016438,2]
[369509741,1751604640535,-460.0,0.00016438,2]
[369509743,1751604640550,-1229.42,0.00016438,2]
[369509745,1751604640560,-460.0,0.00016438,2]
[369509747,1751604640569,-151.0,0.00016438,2]
[369509749,1751604640578,-460.0,0.00016438,2]
[369509751,1751604640587,-460.0,0.00016438,2]
[369509752,1751604640597,-202.27893902,0.00016438,2]
[369509754,1751604640609,-257.72106098,0.00016438,2]
[369509756,1751604640618,-383.28751486,0.00016438,2]
[369509758,1751604640630,-76.71248514,0.00016438,2]
[369509760,1751604640639,-460.0,0.00016438,2]
[369509762,1751604640651,-460.0,0.00016438,2]
[369509764,1751604640660,-528.43,0.00016438,2]
[369509766,1751604640670,-460.40925088,0.00016438,2]
[369509768,1751604640680,-1020.96,0.00016438,2]
[369509770,1751604640690,-460.0,0.00016438,2]
[369509772,1751604640699,-502.83,0.00016438,2]
[369509774,1751604640708,-460.0,0.00016438,2]
[369509776,1751604640718,-1496.74,0.00016438,2]
[369509778,1751604640727,-460.0,0.00016438,2]
[369509780,1751604640737,-0.83207387,0.00016438,2]
[369509782,1751604640749,-848.71792613,0.00016438,2]
[369509784,1751604640759,-460.0,0.00016438,2]
[369509786,1751604640769,-500.0,0.00016438,2]
[369509802,1751604640915,-462.6147089,0.00016438,2]
[369509804,1751604640926,-460.0,0.00016438,2]
[369509806,1751604640936,-2.19930871,0.00016438,2]
[369509808,1751604640948,-457.80069129,0.00016438,2]
[369509810,1751604640959,-1374.26,0.00016438,2]
[369509812,1751604640968,-460.0,0.00016438,2]
[369509814,1751604640977,-3781.36,0.00016438,2]
[369509816,1751604640987,-344.57276909,0.00016438,2]
[369509818,1751604640996,-460.0,0.00016438,2]
[369509820,1751604641005,-460.0,0.00016438,2]
[369509823,1751604641015,-460.0,0.00016438,2]
[369509825,1751604641025,-177.32439418,0.00016438,2]
[369509826,1751604641035,-460.0,0.00016438,2]
[369509828,1751604641044,-460.0,0.00016438,2]
[369509831,1751604641054,-761.74,0.00016438,2]
[369509833,1751604641064,-654.79,0.00016438,2]
[369509835,1751604641073,-460.0,0.00016438,2]
[369509837,1751604641082,-460.0,0.00016438,2]
[369509839,1751604641092,-1079.27,0.00016438,2]
[369509841,1751604641102,-460.0,0.00016438,2]
[369509843,1751604641112,-460.0,0.00016438,2]
[369509845,1751604641122,-460.0,0.00016438,2]
[369509847,1751604641131,-460.0,0.00016438,2]
[369509849,1751604641142,-460.0,0.00016438,2]
[369509851,1751604641151,-460.0,0.00016438,2]
[369509852,1751604641161,-462.05148654,0.00016438,2]
[369509854,1751604641170,-460.0,0.00016438,2]
[369509856,1751604641179,-460.0,0.00016438,2]
[369509858,1751604641189,-463.19507661,0.00016438,2]
[369509860,1751604641198,-460.82544068,0.00016438,2]
[369509862,1751604641207,-460.0,0.00016438,2]
[369509864,1751604641216,-500.0,0.00016438,2]
[369509866,1751604641226,-621.53877252,0.00016438,2]
[369509868,1751604641236,-500.0,0.00016438,2]
[369509870,1751604641246,-461.44418586,0.00016438,2]
[369509872,1751604641256,-572.85009204,0.00016438,2]
[369509874,1751604641265,-460.0,0.00016438,2]
[369509876,1751604641275,-418.20237092,0.00016438,2]
[369509878,1751604641285,-151.0,0.00016465,2]
[369509880,1751604641294,-246.52724918,0.00016493,2]
[369509882,1751604641304,-1000.0,0.00016611,2]
[369509884,1751604641313,-12023.48701175,0.00016612,2]
[369509886,1751604641322,-864.02,0.00016685,3]
[369509888,1751604641332,-1000.0,0.00016694,2]
[369509890,1751604641341,-168.0,0.00016694,2]
[369509892,1751604641351,-160.0,0.00016695,2]
[369509894,1751604641360,-160.0,0.00016695,2]
[369509896,1751604641369,-160.0,0.00016695,2]
[369509898,1751604641379,-160.0,0.00016695,2]
[369509900,1751604641388,-160.0,0.00016695,2]
[369509902,1751604641398,-160.0,0.00016695,2]
[369509904,1751604641408,-12578.03337979,0.00016695,2]
[369509906,1751604641417,-837.48520791,0.00016695,2]
[369509908,1751604641427,-847.91215827,0.00016695,2]
[369509910,1751604641436,-160.0,0.00016695,2]
[369509912,1751604641446,-230.40116161,0.00016695,2]
[369509914,1751604641455,-213.97741257,0.00016695,2]
[369509916,1751604641464,-215.11129906,0.00016695,2]
[369509918,1751604641473,-827.72,0.00016702,3]
[369509920,1751604641483,-305.88452029,0.00016711,2]
[369509922,1751604641492,-460.0,0.00016712,2]
[369509924,1751604641501,-289.36986443,0.00016712,2]
[369509926,1751604641511,-460.0,0.00016712,2]
[369509928,1751604641521,-460.0,0.00016712,2]
[369509930,1751604641530,-492.18,0.00016712,2]
[369509932,1751604641540,-460.0,0.00016712,2]
[369509934,1751604641553,-460.0,0.00016712,2]
[369509936,1751604641562,-1277.65,0.00016712,2]
[369509938,1751604641572,-460.0,0.00016712,2]
[369509940,1751604641581,-460.0,0.00016712,2]
[369509942,1751604641591,-460.0,0.00016712,2]
[369509944,1751604641600,-867.18,0.00016712,2]
[369509946,1751604641610,-460.0,0.00016712,2]
[369509948,1751604641620,-2202.29,0.00016712,2]
[369509950,1751604641631,-1293.38,0.00016712,2]
[369509952,1751604641640,-3591.81,0.00016712,2]
[369509954,1751604641650,-460.0,0.00016712,2]
[369509956,1751604641660,-505.67,0.00016712,2]
[369509958,1751604641669,-460.0,0.00016712,2]
[369509960,1751604641678,-1371.69,0.00016712,2]
[369509962,1751604641688,-1552.07,0.00016712,2]
[369509964,1751604641698,-460.0,0.00016712,2]
[369509966,1751604641709,-1149.92,0.00016712,2]
[369509968,1751604641719,-460.0,0.00016712,2]
[369509970,1751604641729,-495.42,0.00016712,2]
[369509972,1751604641738,-1928.25,0.00016712,2]
[369509974,1751604641748,-460.0,0.00016712,2]
[369509976,1751604641757,-460.0,0.00016712,2]
[369509978,1751604641766,-580.29,0.00016712,2]
[369509980,1751604641776,-2392.35,0.00016712,2]
[369509982,1751604641785,-491.58,0.00016712,2]
[369509984,1751604641794,-746.15,0.00016712,2]
[369509986,1751604641803,-460.0,0.00016712,2]
[369509988,1751604641813,-460.0,0.00016712,2]
[369509990,1751604641823,-485.74,0.00016712,2]
[369509992,1751604641833,-460.0,0.00016712,2]
[369509994,1751604641842,-664.6,0.00016712,2]
[369509996,1751604641851,-1521.05,0.00016712,2]
[369509998,1751604641860,-460.0,0.00016712,2]
[369510000,1751604641869,-1786.15,0.00016712,2]
[369510002,1751604641878,-1611.28,0.00016712,2]
[369510004,1751604641888,-460.0,0.00016712,2]
[369510006,1751604641898,-1229.42,0.00016712,2]
[369510008,1751604641908,-460.0,0.00016712,2]
[369510010,1751604641917,-460.0,0.00016712,2]
[369510012,1751604641926,-460.0,0.00016712,2]
[369510014,1751604641936,-528.43,0.00016712,2]
[369510016,1751604641946,-1020.96,0.00016712,2]
[369510018,1751604641955,-502.83,0.00016712,2]
[369510020,1751604641964,-460.0,0.00016712,2]
[369510022,1751604641974,-1496.74,0.00016712,2]
[369510024,1751604641983,-849.55,0.00016712,2]
[369510026,1751604641992,-460.0,0.00016712,2]
[369510028,1751604642001,-460.0,0.00016712,2]
[369510029,1751604642010,-1374.26,0.00016712,2]
[369510030,1751604642020,-3781.36,0.00016712,2]
[369510031,1751604642030,-460.0,0.00016712,2]
[369510032,1751604642039,-460.0,0.00016712,2]
[369510033,1751604642048,-460.0,0.00016712,2]
[369510034,1751604642058,-761.74,0.00016712,2]
[369510035,1751604642067,-654.79,0.00016712,2]
[369510036,1751604642076,-1079.27,0.00016712,2]
[369510037,1751604642086,-460.0,0.00016712,2]
[369510038,1751604642095,-460.0,0.00016712,2]
[369510039,1751604642104,-460.0,0.00016712,2]
[369510040,1751604642113,-460.0,0.00016712,2]
[369510041,1751604642123,-460.0,0.00016712,2]
[369510042,1751604642132,-460.0,0.00016712,2]
[369510043,1751604642143,-460.0,0.00016712,2]
[369510044,1751604642153,-460.0,0.00016712,2]
[369510045,1751604642163,-250.15759984,0.00016844,2]
[369510046,1751604642172,-300.0,0.00016864,2]
[369510047,1751604642181,-420.0,0.00016864,2]
[369510048,1751604642191,-4439.27320318,0.000169,2]
[369510049,1751604642200,-168.0,0.00016944,2]
[369510050,1751604642210,-1200.0,0.00016947,2]
[369510051,1751604642219,-500.0,0.00016961,2]
[369510052,1751604642228,-168.0,0.00016963,2]
[369510053,1751604642238,-460.0,0.00016986,2]
[369510054,1751604642247,-460.0,0.00016986,2]
[369510055,1751604642256,-460.0,0.00016986,2]
[369510056,1751604642265,-492.18,0.00016986,2]
[369510057,1751604642274,-460.0,0.00016986,2]
[369510058,1751604642283,-460.0,0.00016986,2]
[369510059,1751604642293,-1277.65,0.00016986,2]
[369510060,1751604642302,-460.0,0.00016986,2]
[369510061,1751604642311,-460.0,0.00016986,2]
[369510062,1751604642320,-460.0,0.00016986,2]
[369510063,1751604642329,-867.18,0.00016986,2]
[369510064,1751604642339,-460.0,0.00016986,2]
[369510065,1751604642348,-2202.29,0.00016986,2]
[369510066,1751604642357,-1293.38,0.00016986,2]
[369510067,1751604642366,-3591.81,0.00016986,2]
[369510069,1751604642376,-300.4345968,0.00016986,2]
[369510071,1751604642385,-505.67,0.00016986,2]
[369510073,1751604642396,-460.0,0.00016986,2]
[369510075,1751604642405,-1371.69,0.00016986,2]
[369510077,1751604642414,-1552.07,0.00016986,2]
[369510079,1751604642423,-460.0,0.00016986,2]
[369510081,1751604642432,-1149.92,0.00016986,2]
[369510083,1751604642441,-460.0,0.00016986,2]
[369510085,1751604642450,-495.42,0.00016986,2]
[369510087,1751604642460,-1928.25,0.00016986,2]
[369510089,1751604642469,-460.0,0.00016986,2]
[369510091,1751604642478,-460.0,0.00016986,2]
[369510093,1751604642487,-580.29,0.00016986,2]
[369510096,1751604642496,-2392.35,0.00016986,2]
[369510098,1751604642506,-746.15,0.00016986,2]
[369510100,1751604642515,-491.58,0.00016986,2]
[369510102,1751604642524,-460.0,0.00016986,2]
[369510104,1751604642534,-485.74,0.00016986,2]
[369510106,1751604642545,-664.6,0.00016986,2]
[369510108,1751604642555,-1521.05,0.00016986,2]
[369510110,1751604642564,-460.0,0.00016986,2]